[Event "*** MasterClass Titled Tuesday Blitz"]
[Site "Chess.com"]
[Date "2017.12.05"]
[Round "5"]
[White "mikhaillushenkov"]
[Black "HarutyunianTigranK"]
[Result "1-0"]
[WhiteElo "2586"]
[BlackElo "2536"]
[TimeControl "180+2"]
[EndTime "15:22:51 PST"]
[Termination "mikhaillushenkov won by resignation"]

1. Nf3 {[%clk 0:03:01.9]} 1... Nf6 {[%clk 0:03:00.5]} 2. c4 {[%clk 0:03:03.8]}
2... e6 {[%clk 0:03:01.2]} 3. g3 {[%clk 0:03:04.7]} 3... d5 {[%clk 0:03:02.7]}
4. Bg2 {[%clk 0:03:06.6]} 4... Be7 {[%clk 0:03:04]} 5. O-O {[%clk 0:03:08.4]}
5... O-O {[%clk 0:03:05.6]} 6. b3 {[%clk 0:03:09.9]} 6... b6 {[%clk 0:03:05.8]}
7. Bb2 {[%clk 0:03:10.6]} 7... Bb7 {[%clk 0:03:06.7]} 8. e3 {[%clk 0:03:12.2]}
8... c5 {[%clk 0:03:06.9]} 9. Qe2 {[%clk 0:03:13.3]} 9... Nc6 {[%clk 0:03:06.2]}
10. Rd1 {[%clk 0:03:04.3]} 10... d4 {[%clk 0:02:55]} 11. d3 {[%clk 0:03:03.2]}
11... Re8 {[%clk 0:02:54.3]} 12. Nbd2 {[%clk 0:02:59.1]} 12... Rc8 {[%clk
0:02:37.3]} 13. e4 {[%clk 0:02:51.1]} 13... e5 {[%clk 0:02:32.5]} 14. Nh4 {[%clk
0:02:50.7]} 14... Nd7 {[%clk 0:02:27.4]} 15. Nf5 {[%clk 0:02:50.7]} 15... Bf8
{[%clk 0:02:28.7]} 16. Bh3 {[%clk 0:02:47.5]} 16... g6 {[%clk 0:02:25.7]} 17.
Nh4 {[%clk 0:02:48.4]} 17... Rc7 {[%clk 0:02:26.3]} 18. Rf1 {[%clk 0:02:45.4]}
18... Nf6 {[%clk 0:02:22.8]} 19. Rae1 {[%clk 0:02:41.7]} 19... Bc8 {[%clk
0:02:23.5]} 20. Bxc8 {[%clk 0:02:41]} 20... Qxc8 {[%clk 0:02:24.5]} 21. Kg2
{[%clk 0:02:36.5]} 21... Bh6 {[%clk 0:02:15.3]} 22. Ndf3 {[%clk 0:02:36.5]}
22... Nh5 {[%clk 0:02:06.9]} 23. Bc1 {[%clk 0:02:34]} 23... Bxc1 {[%clk
0:02:06]} 24. Rxc1 {[%clk 0:02:35.9]} 24... f6 {[%clk 0:02:03.8]} 25. Ng1 {[%clk
0:02:33.6]} 25... Nd8 {[%clk 0:01:58.5]} 26. f3 {[%clk 0:02:26.5]} 26... Ne6
{[%clk 0:01:58.2]} 27. Kf2 {[%clk 0:02:25.5]} 27... Rf7 {[%clk 0:01:52.6]} 28.
Ke1 {[%clk 0:02:20.4]} 28... f5 {[%clk 0:01:45.2]} 29. Kd2 {[%clk 0:02:14.5]}
29... f4 {[%clk 0:01:43]} 30. g4 {[%clk 0:02:13]} 30... Nhg7 {[%clk 0:01:41]}
31. Ng2 {[%clk 0:02:12.5]} 31... Qa6 {[%clk 0:01:41.2]} 32. a4 {[%clk
0:02:10.4]} 32... Nd8 {[%clk 0:01:38.2]} 33. h4 {[%clk 0:02:08.4]} 33... Nc6
{[%clk 0:01:38.7]} 34. Ke1 {[%clk 0:02:08.2]} 34... Nb4 {[%clk 0:01:26.3]} 35.
Kf2 {[%clk 0:02:08]} 35... h5 {[%clk 0:01:24.7]} 36. g5 {[%clk 0:02:06.4]} 36...
Ne6 {[%clk 0:01:25.6]} 37. Ra1 {[%clk 0:02:04.7]} 37... Nd8 {[%clk 0:01:24.3]}
38. Rfb1 {[%clk 0:02:02.9]} 38... Ndc6 {[%clk 0:01:24.7]} 39. Ne1 {[%clk
0:02:03.8]} 39... Qc8 {[%clk 0:01:17.5]} 40. Kg2 {[%clk 0:02:04.3]} 40... Rb7
{[%clk 0:01:01]} 41. Ra3 {[%clk 0:02:04.7]} 41... Qe6 {[%clk 0:00:58.5]} 42.
Rba1 {[%clk 0:02:05.4]} 42... Reb8 {[%clk 0:00:58.8]} 43. Nh3 {[%clk 0:02:05.2]}
43... Kh7 {[%clk 0:00:49.4]} 44. Nf2 {[%clk 0:02:02]} 44... a6 {[%clk
0:00:50.4]} 45. Nc2 {[%clk 0:01:56.2]} 45... Nxc2 {[%clk 0:00:46.8]} 46. Qxc2
{[%clk 0:01:58.1]} 46... Nb4 {[%clk 0:00:47.6]} 47. Qd2 {[%clk 0:01:58.8]} 47...
Nc6 {[%clk 0:00:44.2]} 48. Nd1 {[%clk 0:01:51.9]} 48... Nd8 {[%clk 0:00:43.8]}
49. b4 {[%clk 0:01:36.6]} 49... cxb4 {[%clk 0:00:39.7]} 50. Qxb4 {[%clk
0:01:38.4]} 50... Nc6 {[%clk 0:00:37.1]} 51. Qd2 {[%clk 0:01:30.9]} 51... Rc7
{[%clk 0:00:37.5]} 52. Rb1 {[%clk 0:01:28.7]} 52... Na5 {[%clk 0:00:38.5]} 53.
Qb4 {[%clk 0:01:26.4]} 53... Qe7 {[%clk 0:00:30.4]} 54. Ra2 {[%clk 0:01:23.8]}
54... Qxb4 {[%clk 0:00:23.6]} 55. Rxb4 {[%clk 0:01:25.7]} 55... Nc6 {[%clk
0:00:24.9]} 56. Rb1 {[%clk 0:01:26.3]} 56... Nd8 {[%clk 0:00:25.8]} 57. Rab2
{[%clk 0:01:26.8]} 57... Rcb7 {[%clk 0:00:26.5]} 58. Nf2 {[%clk 0:01:27.1]}
58... Nc6 {[%clk 0:00:25.6]} 59. Nh3 {[%clk 0:01:26.8]} 59... Na5 {[%clk
0:00:21.4]} 60. Ng1 {[%clk 0:01:26]} 60... Kg7 {[%clk 0:00:22.7]} 61. Ne2 {[%clk
0:01:26.2]} 61... Kf7 {[%clk 0:00:23.5]} 62. Nc1 {[%clk 0:01:27.3]} 62... Ke6
{[%clk 0:00:20.8]} 63. Na2 {[%clk 0:01:24.1]} 63... Nc6 {[%clk 0:00:19.1]} 64.
Kf2 {[%clk 0:01:24.8]} 64... Kd6 {[%clk 0:00:19.6]} 65. Nc1 {[%clk 0:01:22.3]}
65... Kc7 {[%clk 0:00:19.7]} 66. Nb3 {[%clk 0:01:19.3]} 66... Nd8 {[%clk
0:00:20.6]} 67. Ke2 {[%clk 0:01:15.9]} 67... Ne6 {[%clk 0:00:20.7]} 68. Kd2
{[%clk 0:01:16.7]} 68... Nc5 {[%clk 0:00:21.4]} 69. Ra1 {[%clk 0:01:13.4]} 69...
Kc6 {[%clk 0:00:19.7]} 70. Kc2 {[%clk 0:01:13.3]} 70... Kd6 {[%clk 0:00:19.8]}
71. Ra3 {[%clk 0:01:06.6]} 71... Ne6 {[%clk 0:00:20.4]} 72. Nc1 {[%clk 0:01:07]}
72... Nc5 {[%clk 0:00:20.7]} 73. Na2 {[%clk 0:01:08]} 73... a5 {[%clk
0:00:19.8]} 74. Nc1 {[%clk 0:01:08.2]} 74... Na6 {[%clk 0:00:20.8]} 75. Rb5
{[%clk 0:01:08.6]} 75... Nc7 {[%clk 0:00:22]} 76. Rb2 {[%clk 0:01:08]} 76... Na6
{[%clk 0:00:23.6]} 77. Na2 {[%clk 0:01:09.6]} 77... Nc5 {[%clk 0:00:18.2]} 78.
Rb5 {[%clk 0:01:10.1]} 78... Rc7 {[%clk 0:00:13.3]} 79. Nc1 {[%clk 0:01:10.2]}
79... Rc6 {[%clk 0:00:14.3]} 80. Nb3 {[%clk 0:01:09.4]} 80... Na6 {[%clk
0:00:11.7]} 81. Kd2 {[%clk 0:01:07.8]} 81... Nc7 {[%clk 0:00:11.7]} 82. c5+
{[%clk 0:00:51.1]} 82... Ke6 {[%clk 0:00:10.7]} 83. Rxb6 {[%clk 0:00:51]} 83...
Rbxb6 {[%clk 0:00:11]} 84. cxb6 {[%clk 0:00:52.9]} 84... Rxb6 {[%clk 0:00:12.9]}
85. Nxa5 {[%clk 0:00:54.1]} 85... Rb2+ {[%clk 0:00:13.7]} 86. Kc1 {[%clk
0:00:54.4]} 86... Rh2 {[%clk 0:00:15.6]} 87. Nc4 {[%clk 0:00:50]} 87... Rxh4
{[%clk 0:00:16.5]} 88. a5 {[%clk 0:00:51.2]} 88... Rh1+ {[%clk 0:00:17.3]} 89.
Kb2 {[%clk 0:00:52.1]} 89... h4 {[%clk 0:00:19.2]} 90. a6 {[%clk 0:00:52.4]}
90... h3 {[%clk 0:00:20.2]} 91. a7 {[%clk 0:00:37.6]} 91... h2 {[%clk
0:00:20.7]} 92. Ra6+ {[%clk 0:00:35.3]} 92... Ke7 {[%clk 0:00:14.8]} 93. Rc6
{[%clk 0:00:32.9]} 93... Rb1+ {[%clk 0:00:13.5]} 94. Kxb1 {[%clk 0:00:33.9]}
94... h1=Q+ {[%clk 0:00:14.6]} 95. Kb2 {[%clk 0:00:34.5]} 95... Na8 {[%clk
0:00:13.3]} 96. Rc8 {[%clk 0:00:35.3]} 96... Qg2+ {[%clk 0:00:13.2]} 97. Kb3
{[%clk 0:00:35.2]} 97... Qxf3 {[%clk 0:00:09.1]} 98. Rxa8 {[%clk 0:00:36.3]}
98... Qxd3+ {[%clk 0:00:10]} 99. Kb4 {[%clk 0:00:37.7]} 99... Qxe4 {[%clk
0:00:03.7]} 100. Rb8 {[%clk 0:00:35.2]} 100... f3 {[%clk 0:00:03.3]} 101. a8=Q
{[%clk 0:00:34.8]} 101... Qxa8 {[%clk 0:00:04.7]} 102. Rxa8 {[%clk 0:00:36.7]}
102... e4 {[%clk 0:00:06.1]} 103. Nd2 {[%clk 0:00:33]} 103... f2 {[%clk
0:00:07.3]} 104. Kc4 {[%clk 0:00:26.7]} 104... e3 {[%clk 0:00:08]} 105. Kd3
{[%clk 0:00:28]} 105... exd2 {[%clk 0:00:08.7]} 106. Ra1 {[%clk 0:00:27.7]}
106... Ke6 {[%clk 0:00:09.4]} 107. Kxd2 {[%clk 0:00:28.4]} 107... Kf5 {[%clk
0:00:08.6]} 108. Ke2 {[%clk 0:00:28.7]} 108... Kxg5 {[%clk 0:00:09.2]} 109. Kxf2
{[%clk 0:00:30.1]} 109... Kf4 {[%clk 0:00:11.1]} 110. Ke2 {[%clk 0:00:29]}
110... Ke4 {[%clk 0:00:12.1]} 111. Rg1 {[%clk 0:00:29.5]} 111... d3+ {[%clk
0:00:12.6]} 112. Kd2 {[%clk 0:00:30.4]} 1-0

[Event "*** MasterClass Titled Tuesday Blitz"]
[Site "Chess.com"]
[Date "2017.12.05"]
[Round "6"]
[White "fredjust"]
[Black "Sulvyfex"]
[Result "1-0"]
[WhiteElo "1637"]
[BlackElo "1336"]
[TimeControl "180+2"]
[EndTime "15:25:32 PST"]
[Termination "fredjust won by resignation"]

1. d4 {[%clk 0:03:01.9]} 1... d5 {[%clk 0:03:00.4]} 2. e3 {[%clk 0:03:01.8]}
2... Nf6 {[%clk 0:03:01]} 3. Bd3 {[%clk 0:03:01.8]} 3... c6 {[%clk 0:02:59.8]}
4. Nd2 {[%clk 0:03:02]} 4... Nbd7 {[%clk 0:03:00.3]} 5. c3 {[%clk 0:03:02.2]}
5... b6 {[%clk 0:03:01.5]} 6. f4 {[%clk 0:03:01.8]} 6... Bb7 {[%clk 0:03:02.2]}
7. Ngf3 {[%clk 0:03:02.4]} 7... e6 {[%clk 0:03:03.1]} 8. O-O {[%clk 0:03:02.8]}
8... Bd6 {[%clk 0:03:02.5]} 9. Ne5 {[%clk 0:03:03.1]} 9... O-O {[%clk
0:03:03.9]} 10. Qf3 {[%clk 0:03:00.4]} 10... c5 {[%clk 0:03:03.8]} 11. g4 {[%clk
0:02:55.1]} 11... cxd4 {[%clk 0:02:56]} 12. exd4 {[%clk 0:02:54.4]} 12... Ne8
{[%clk 0:02:51.1]} 13. g5 {[%clk 0:02:32.2]} 13... f6 {[%clk 0:02:44.4]} 14.
Bxh7+ {[%clk 0:02:31.3]} 14... Kxh7 {[%clk 0:02:28.3]} 15. Qh5+ {[%clk
0:02:31.5]} 15... Kg8 {[%clk 0:02:28.2]} 16. g6 {[%clk 0:02:30.6]} 1-0

[Event "*** MasterClass Titled Tuesday Blitz"]
[Site "Chess.com"]
[Date "2017.12.05"]
[Round "6"]
[White "GMKrikor"]
[Black "TomasPabloFerreira"]
[Result "1-0"]
[WhiteElo "2633"]
[BlackElo "946"]
[TimeControl "180+2"]
[EndTime "15:25:45 PST"]
[Termination "GMKrikor won by checkmate"]

1. e4 {[%clk 0:03:01.1]} 1... e6 {[%clk 0:02:59.5]} 2. d4 {[%clk 0:03:01.8]}
2... d5 {[%clk 0:03:01]} 3. Nd2 {[%clk 0:03:02.4]} 3... Nf6 {[%clk 0:03:00.8]}
4. e5 {[%clk 0:03:02.3]} 4... Nfd7 {[%clk 0:03:02]} 5. c3 {[%clk 0:02:56.5]}
5... c5 {[%clk 0:02:56]} 6. Bd3 {[%clk 0:02:57.6]} 6... Be7 {[%clk 0:02:54.6]}
7. Ngf3 {[%clk 0:02:54.5]} 7... Nc6 {[%clk 0:02:51.7]} 8. O-O {[%clk 0:02:55.5]}
8... O-O {[%clk 0:02:52.3]} 9. Re1 {[%clk 0:02:55.9]} 9... cxd4 {[%clk
0:02:45.3]} 10. cxd4 {[%clk 0:02:56.4]} 10... Nb4 {[%clk 0:02:45]} 11. Bb1
{[%clk 0:02:57.1]} 11... b6 {[%clk 0:02:36.9]} 12. a3 {[%clk 0:02:57.5]} 12...
Nc6 {[%clk 0:02:37.4]} 13. Nf1 {[%clk 0:02:58.7]} 13... Ba6 {[%clk 0:02:33.1]}
14. Ng3 {[%clk 0:02:56.9]} 14... Bh4 {[%clk 0:02:19]} 15. Qc2 {[%clk 0:02:53.2]}
15... Bxg3 {[%clk 0:02:00.6]} 16. Qxh7# {[%clk 0:02:38.7]} 1-0

[Event "*** MasterClass Titled Tuesday Blitz"]
[Site "Chess.com"]
[Date "2017.12.05"]
[Round "6"]
[White "Frolik67"]
[Black "ChessicallyInclined"]
[Result "0-1"]
[WhiteElo "2414"]
[BlackElo "2231"]
[TimeControl "180+2"]
[EndTime "15:26:35 PST"]
[Termination "ChessicallyInclined won by resignation"]

1. e4 {[%clk 0:03:00.2]} 1... e5 {[%clk 0:03:00.7]} 2. Nf3 {[%clk 0:03:01.3]}
2... Nc6 {[%clk 0:03:01.4]} 3. Bc4 {[%clk 0:03:01.5]} 3... Nf6 {[%clk
0:03:01.2]} 4. d3 {[%clk 0:03:02.3]} 4... Be7 {[%clk 0:02:58.8]} 5. h3 {[%clk
0:03:02.7]} 5... d6 {[%clk 0:02:59.1]} 6. c3 {[%clk 0:03:01.9]} 6... Na5 {[%clk
0:02:53.4]} 7. Bb5+ {[%clk 0:03:02.6]} 7... c6 {[%clk 0:02:51.6]} 8. Ba4 {[%clk
0:03:03.9]} 8... b5 {[%clk 0:02:50.2]} 9. Bc2 {[%clk 0:03:05.5]} 9... h6 {[%clk
0:02:46.5]} 10. Nbd2 {[%clk 0:03:04.2]} 10... O-O {[%clk 0:02:45.8]} 11. g4
{[%clk 0:03:03.6]} 11... Nh7 {[%clk 0:02:42.5]} 12. Nf1 {[%clk 0:02:57.9]} 12...
Ng5 {[%clk 0:02:41.4]} 13. Ng3 {[%clk 0:02:48.6]} 13... Nxf3+ {[%clk 0:02:40.6]}
14. Qxf3 {[%clk 0:02:50.5]} 14... Bg5 {[%clk 0:02:39.6]} 15. Bxg5 {[%clk
0:02:45.8]} 15... Qxg5 {[%clk 0:02:41.5]} 16. Nf5 {[%clk 0:02:45.8]} 16... Bxf5
{[%clk 0:02:33.9]} 17. gxf5 {[%clk 0:02:47.7]} 17... Nb7 {[%clk 0:02:30.4]} 18.
Ke2 {[%clk 0:02:46]} 18... Kh8 {[%clk 0:02:27.4]} 19. Rag1 {[%clk 0:02:44.3]}
19... Qf6 {[%clk 0:02:27.4]} 20. Rg4 {[%clk 0:02:38.6]} 20... a5 {[%clk
0:02:27.3]} 21. Rhg1 {[%clk 0:02:39.3]} 21... Nc5 {[%clk 0:02:25.8]} 22. Rxg7
{[%clk 0:02:38.9]} 22... Qxg7 {[%clk 0:02:24]} 23. Rxg7 {[%clk 0:02:40.8]} 23...
Kxg7 {[%clk 0:02:25.1]} 24. f6+ {[%clk 0:02:42.5]} 24... Kh8 {[%clk 0:02:21.7]}
25. Qh5 {[%clk 0:02:32.6]} 25... Kh7 {[%clk 0:02:21]} 26. Qf5+ {[%clk
0:02:33.1]} 26... Kh8 {[%clk 0:02:20.6]} 27. d4 {[%clk 0:02:32.5]} 27... Ne6
{[%clk 0:02:16.1]} 28. dxe5 {[%clk 0:02:29.9]} 28... dxe5 {[%clk 0:02:17.1]} 29.
Qh5 {[%clk 0:02:30.8]} 29... Nf4+ {[%clk 0:02:16.1]} 0-1

[Event "*** MasterClass Titled Tuesday Blitz"]
[Site "Chess.com"]
[Date "2017.12.05"]
[Round "6"]
[White "saraswathii"]
[Black "FearNoEvil12"]
[Result "1-0"]
[WhiteElo "2298"]
[BlackElo "2057"]
[TimeControl "180+2"]
[EndTime "15:27:01 PST"]
[Termination "saraswathii won by checkmate"]

1. d4 {[%clk 0:03:01.9]} 1... b5 {[%clk 0:02:59.4]} 2. Bf4 {[%clk 0:02:59.9]}
2... a6 {[%clk 0:03:00.6]} 3. e3 {[%clk 0:02:59.3]} 3... Bb7 {[%clk 0:03:02]} 4.
Nf3 {[%clk 0:02:53.9]} 4... Nf6 {[%clk 0:03:02.7]} 5. Bd3 {[%clk 0:02:52]} 5...
e6 {[%clk 0:03:03.2]} 6. O-O {[%clk 0:02:50.5]} 6... d6 {[%clk 0:03:04.5]} 7. c4
{[%clk 0:02:42.4]} 7... bxc4 {[%clk 0:03:03.5]} 8. Bxc4 {[%clk 0:02:42.9]} 8...
Nbd7 {[%clk 0:03:05]} 9. Nc3 {[%clk 0:02:43.2]} 9... h6 {[%clk 0:03:06]} 10. h3
{[%clk 0:02:43.7]} 10... g5 {[%clk 0:03:07]} 11. Bg3 {[%clk 0:02:43.7]} 11... g4
{[%clk 0:03:06.5]} 12. hxg4 {[%clk 0:02:42.2]} 12... Nxg4 {[%clk 0:03:07.5]} 13.
Rc1 {[%clk 0:02:34.5]} 13... h5 {[%clk 0:03:07.9]} 14. d5 {[%clk 0:02:22.8]}
14... e5 {[%clk 0:03:07.7]} 15. Nh2 {[%clk 0:02:14.1]} 15... Rg8 {[%clk
0:03:01.3]} 16. Nxg4 {[%clk 0:02:06.1]} 16... Rxg4 {[%clk 0:03:01.3]} 17. Be2
{[%clk 0:02:04.5]} 17... Rxg3 {[%clk 0:02:49.4]} 18. fxg3 {[%clk 0:02:03.8]}
18... Qg5 {[%clk 0:02:49.4]} 19. Bxh5 {[%clk 0:01:57.6]} 19... Nf6 {[%clk
0:02:36.8]} 20. Qf3 {[%clk 0:01:50.3]} 20... Be7 {[%clk 0:02:32.5]} 21. Ne4
{[%clk 0:01:47.6]} 21... Nxe4 {[%clk 0:02:16]} 22. Qxf7+ {[%clk 0:01:40.9]}
22... Kd8 {[%clk 0:02:13]} 23. Qe8# {[%clk 0:01:41.6]} 1-0

[Event "*** MasterClass Titled Tuesday Blitz"]
[Site "Chess.com"]
[Date "2017.12.05"]
[Round "6"]
[White "dyziotomi99"]
[Black "FMJoseHerrera"]
[Result "0-1"]
[WhiteElo "2441"]
[BlackElo "2452"]
[TimeControl "180+2"]
[EndTime "15:28:10 PST"]
[Termination "FMJoseHerrera won by resignation"]

1. d4 {[%clk 0:03:01.9]} 1... Nf6 {[%clk 0:03:00.3]} 2. c4 {[%clk 0:03:03]} 2...
c5 {[%clk 0:02:59.9]} 3. d5 {[%clk 0:03:02.7]} 3... b5 {[%clk 0:03:00.9]} 4.
cxb5 {[%clk 0:03:03.9]} 4... a6 {[%clk 0:03:02.5]} 5. b6 {[%clk 0:03:05.6]} 5...
g6 {[%clk 0:03:03.6]} 6. Nc3 {[%clk 0:03:06.8]} 6... Bg7 {[%clk 0:03:05.2]} 7.
e4 {[%clk 0:03:07.6]} 7... O-O {[%clk 0:03:06.3]} 8. Nf3 {[%clk 0:03:08.8]} 8...
Qxb6 {[%clk 0:03:02.8]} 9. Be2 {[%clk 0:03:09.1]} 9... e6 {[%clk 0:03:02.3]} 10.
dxe6 {[%clk 0:03:01.3]} 10... dxe6 {[%clk 0:03:02.3]} 11. O-O {[%clk 0:03:01.3]}
11... Bb7 {[%clk 0:03:02.7]} 12. Nd2 {[%clk 0:02:59.7]} 12... Rd8 {[%clk
0:02:59.8]} 13. Nc4 {[%clk 0:02:58.8]} 13... Qc7 {[%clk 0:02:57.5]} 14. Qc2
{[%clk 0:02:52.9]} 14... Nc6 {[%clk 0:02:58.2]} 15. f3 {[%clk 0:02:42.7]} 15...
Nd4 {[%clk 0:02:44.1]} 16. Qb1 {[%clk 0:02:43.2]} 16... Nh5 {[%clk 0:02:30.1]}
17. f4 {[%clk 0:02:28.3]} 17... Nf6 {[%clk 0:02:02.7]} 18. Bd3 {[%clk
0:02:25.8]} 18... Rab8 {[%clk 0:01:50.5]} 19. h3 {[%clk 0:02:25.7]} 19... Nh5
{[%clk 0:01:33]} 20. Be3 {[%clk 0:02:12.6]} 20... f5 {[%clk 0:01:21]} 21. e5
{[%clk 0:02:04.1]} 21... Ng3 {[%clk 0:01:11.6]} 22. Rf2 {[%clk 0:02:04]} 22...
Ba8 {[%clk 0:01:01.7]} 23. Qf1 {[%clk 0:01:59.8]} 23... Nxf1 {[%clk 0:01:00.5]}
24. Raxf1 {[%clk 0:01:58.5]} 24... Nf3+ {[%clk 0:00:55.8]} 0-1

[Event "*** MasterClass Titled Tuesday Blitz"]
[Site "Chess.com"]
[Date "2017.12.05"]
[Round "6"]
[White "johannesh"]
[Black "nikitakhoroshev"]
[Result "1-0"]
[WhiteElo "2293"]
[BlackElo "2395"]
[TimeControl "180+2"]
[EndTime "15:28:15 PST"]
[Termination "johannesh won by checkmate"]

1. d4 {[%clk 0:02:59.9]} 1... d6 {[%clk 0:03:00.9]} 2. c4 {[%clk 0:02:54.6]}
2... e5 {[%clk 0:03:01.7]} 3. Nc3 {[%clk 0:02:52.5]} 3... Nc6 {[%clk 0:03:02.1]}
4. Nf3 {[%clk 0:02:53]} 4... g6 {[%clk 0:03:02.6]} 5. dxe5 {[%clk 0:02:40.3]}
5... Nxe5 {[%clk 0:03:00.6]} 6. Nxe5 {[%clk 0:02:37.6]} 6... dxe5 {[%clk
0:03:01.3]} 7. Qxd8+ {[%clk 0:02:34.6]} 7... Kxd8 {[%clk 0:03:01.4]} 8. Bg5+
{[%clk 0:02:30.7]} 8... f6 {[%clk 0:03:02.5]} 9. O-O-O+ {[%clk 0:02:30.9]} 9...
Bd7 {[%clk 0:03:03.5]} 10. Be3 {[%clk 0:02:20.8]} 10... Bh6 {[%clk 0:03:03.5]}
11. Bxh6 {[%clk 0:02:16.2]} 11... Nxh6 {[%clk 0:03:05.4]} 12. g3 {[%clk
0:02:09.6]} 12... Ke7 {[%clk 0:03:04.8]} 13. Nd5+ {[%clk 0:02:07.7]} 13... Kf7
{[%clk 0:02:59.1]} 14. Nb6 {[%clk 0:01:58.7]} 14... axb6 {[%clk 0:02:56.3]} 15.
Rxd7+ {[%clk 0:01:57.4]} 15... Ke6 {[%clk 0:02:57.6]} 16. Rxc7 {[%clk
0:01:47.5]} 16... Rxa2 {[%clk 0:02:58.2]} 17. Bg2 {[%clk 0:01:24.7]} 17... Nf5
{[%clk 0:02:55.5]} 18. e3 {[%clk 0:01:10.3]} 18... Kd6 {[%clk 0:02:43.3]} 19.
Rxb7 {[%clk 0:01:07.9]} 19... Kc5 {[%clk 0:02:44.2]} 20. Kb1 {[%clk 0:00:52.3]}
20... Ra6 {[%clk 0:02:38.3]} 21. Rd1 {[%clk 0:00:47.5]} 21... Rc8 {[%clk
0:02:28.4]} 22. Rd5+ {[%clk 0:00:38.7]} 22... Kb4 {[%clk 0:02:29.5]} 23. Rb5+
{[%clk 0:00:35.1]} 23... Kxc4 {[%clk 0:02:26.8]} 24. Bf1# {[%clk 0:00:34.9]} 1-0

[Event "*** MasterClass Titled Tuesday Blitz"]
[Site "Chess.com"]
[Date "2017.12.05"]
[Round "6"]
[White "MFBerna"]
[Black "jcgs1030"]
[Result "1-0"]
[WhiteElo "2298"]
[BlackElo "2294"]
[TimeControl "180+2"]
[EndTime "15:29:00 PST"]
[Termination "MFBerna won by resignation"]

1. e4 {[%clk 0:03:01.9]} 1... c5 {[%clk 0:02:58.3]} 2. Nf3 {[%clk 0:03:03.1]}
2... d6 {[%clk 0:02:59]} 3. Bc4 {[%clk 0:03:04.1]} 3... Nf6 {[%clk 0:02:59.3]}
4. d3 {[%clk 0:03:04.7]} 4... g6 {[%clk 0:02:59.3]} 5. O-O {[%clk 0:03:05]} 5...
Bg7 {[%clk 0:02:58.3]} 6. Re1 {[%clk 0:03:04.6]} 6... O-O {[%clk 0:02:59.2]} 7.
h3 {[%clk 0:03:05.2]} 7... Nc6 {[%clk 0:02:59.7]} 8. c3 {[%clk 0:03:05.9]} 8...
a6 {[%clk 0:03:00.3]} 9. Bb3 {[%clk 0:03:06.6]} 9... b5 {[%clk 0:03:00.9]} 10.
a4 {[%clk 0:03:07.4]} 10... Bb7 {[%clk 0:03:01.7]} 11. Nbd2 {[%clk 0:03:08.6]}
11... Qb6 {[%clk 0:02:53.9]} 12. Nf1 {[%clk 0:03:06.9]} 12... Na5 {[%clk
0:02:53]} 13. Bc2 {[%clk 0:03:07.6]} 13... Nd7 {[%clk 0:02:51.5]} 14. Bg5 {[%clk
0:02:54.5]} 14... Rfe8 {[%clk 0:02:51.1]} 15. d4 {[%clk 0:02:50.7]} 15... b4
{[%clk 0:02:46.3]} 16. Ne3 {[%clk 0:02:23.3]} 16... bxc3 {[%clk 0:02:40.9]} 17.
bxc3 {[%clk 0:02:25.2]} 17... Qb2 {[%clk 0:02:41.6]} 18. Qd2 {[%clk 0:02:13.6]}
18... cxd4 {[%clk 0:02:37.5]} 19. cxd4 {[%clk 0:02:13.3]} 19... Qb6 {[%clk
0:02:28.8]} 20. Rab1 {[%clk 0:02:10.6]} 20... Qc7 {[%clk 0:02:29.6]} 21. Bd3
{[%clk 0:02:04.4]} 21... e5 {[%clk 0:02:23.6]} 22. Rec1 {[%clk 0:02:03.4]} 22...
Bc6 {[%clk 0:02:14.6]} 23. d5 {[%clk 0:01:53.1]} 23... Nc5 {[%clk 0:02:15.5]}
24. dxc6 {[%clk 0:01:50.1]} 24... Nab3 {[%clk 0:02:15.2]} 25. Rxb3 {[%clk
0:01:29.6]} 25... Nxb3 {[%clk 0:02:17.1]} 26. Nd5 {[%clk 0:01:19]} 26... Qa7
{[%clk 0:02:09.3]} 27. Qe3 {[%clk 0:00:51.7]} 27... Nxc1 {[%clk 0:02:06.6]} 28.
Qxc1 {[%clk 0:00:53.6]} 28... h6 {[%clk 0:02:05.4]} 29. Nf6+ {[%clk 0:00:46.2]}
29... Bxf6 {[%clk 0:02:05.7]} 30. Bxf6 {[%clk 0:00:48.1]} 30... Kh7 {[%clk
0:02:06.9]} 31. Ng5+ {[%clk 0:00:37.1]} 31... hxg5 {[%clk 0:02:06.1]} 32. Qxg5
{[%clk 0:00:37.4]} 32... Re6 {[%clk 0:02:03]} 33. Qh4+ {[%clk 0:00:37.7]} 1-0

[Event "*** MasterClass Titled Tuesday Blitz"]
[Site "Chess.com"]
[Date "2017.12.05"]
[Round "6"]
[White "chesstrophy1"]
[Black "aa175"]
[Result "0-1"]
[WhiteElo "1405"]
[BlackElo "1869"]
[TimeControl "180+2"]
[EndTime "15:29:13 PST"]
[Termination "aa175 won by resignation"]

1. e4 {[%clk 0:03:01.9]} 1... e5 {[%clk 0:02:57.6]} 2. Nf3 {[%clk 0:03:02.4]}
2... Nc6 {[%clk 0:02:57.5]} 3. Bc4 {[%clk 0:03:02.7]} 3... Bc5 {[%clk
0:02:56.1]} 4. c3 {[%clk 0:03:00.6]} 4... d6 {[%clk 0:02:43.3]} 5. d4 {[%clk
0:02:58]} 5... exd4 {[%clk 0:02:41]} 6. cxd4 {[%clk 0:02:58.5]} 6... Bb6 {[%clk
0:02:41.2]} 7. Be3 {[%clk 0:02:56.4]} 7... Nf6 {[%clk 0:02:37.6]} 8. Nc3 {[%clk
0:02:56.6]} 8... O-O {[%clk 0:02:35.5]} 9. O-O {[%clk 0:02:56.8]} 9... Bg4
{[%clk 0:02:33.4]} 10. Be2 {[%clk 0:02:55.6]} 10... Re8 {[%clk 0:02:25.7]} 11.
Qc2 {[%clk 0:02:49.3]} 11... Bxf3 {[%clk 0:02:21.4]} 12. Bxf3 {[%clk 0:02:47.8]}
12... Bxd4 {[%clk 0:02:12.4]} 13. Qd3 {[%clk 0:02:45.8]} 13... Bxe3 {[%clk
0:02:11]} 14. Qxe3 {[%clk 0:02:46.5]} 14... Ne5 {[%clk 0:02:10.6]} 15. Rfe1
{[%clk 0:02:42.6]} 15... Nxf3+ {[%clk 0:02:06.6]} 16. Qxf3 {[%clk 0:02:42.9]}
16... Nd7 {[%clk 0:02:03.5]} 17. Rac1 {[%clk 0:02:40.3]} 17... Ne5 {[%clk
0:02:03.6]} 18. Qf4 {[%clk 0:02:37.7]} 18... Nd3 {[%clk 0:01:59.9]} 19. Qd2
{[%clk 0:02:34.6]} 19... Nxe1 {[%clk 0:01:59.7]} 20. Rxe1 {[%clk 0:02:34.9]}
20... c6 {[%clk 0:01:49.8]} 21. b3 {[%clk 0:02:28.7]} 21... Qc7 {[%clk
0:01:45.2]} 22. Qf4 {[%clk 0:02:21]} 22... Qe7 {[%clk 0:01:37]} 23. Re3 {[%clk
0:02:15.7]} 23... Qe5 {[%clk 0:01:35]} 24. Qxe5 {[%clk 0:02:14.6]} 24... Rxe5
{[%clk 0:01:34.7]} 25. f4 {[%clk 0:02:14.6]} 25... Re7 {[%clk 0:01:35.3]} 26.
Kf2 {[%clk 0:02:13.8]} 26... Rae8 {[%clk 0:01:35.2]} 27. Rd3 {[%clk 0:02:10.6]}
27... Rd7 {[%clk 0:01:33]} 28. Kf3 {[%clk 0:02:11.4]} 28... f6 {[%clk
0:01:32.4]} 29. g4 {[%clk 0:02:11.5]} 29... h6 {[%clk 0:01:30]} 30. Nd1 {[%clk
0:02:09.3]} 30... d5 {[%clk 0:01:25.1]} 31. Kg3 {[%clk 0:01:55.8]} 31... Rxe4
{[%clk 0:01:22.6]} 32. Nf2 {[%clk 0:01:55.2]} 32... Re8 {[%clk 0:01:19.4]} 33.
f5 {[%clk 0:01:53.8]} 33... Rde7 {[%clk 0:01:15.4]} 34. Nd1 {[%clk 0:01:42.2]}
34... Re1 {[%clk 0:01:09.5]} 35. Nc3 {[%clk 0:01:42.2]} 35... R8e3+ {[%clk
0:01:06.9]} 36. Rxe3 {[%clk 0:01:40.1]} 36... Rxe3+ {[%clk 0:01:04.7]} 0-1